bitfinex-derivatives/quotes_BTCF0:USTF0_20250330
["timestamp","ask_amount","ask_price","bid_price","bid_amount"]
[1743325989134,0.76059692,83341.0,83340.0,0.09669487]
[1743325989733,0.39979712,83341.0,83340.0,0.09669487]
[1743325989933,0.76059712,83341.0,83340.0,0.09669487]
[1743325990833,0.89034217,83341.0,83340.0,0.09669487]
[1743325992343,0.52954217,83341.0,83340.0,0.09669487]
[1743325992642,0.89034217,83341.0,83340.0,0.09669487]
[1743325994931,0.52954217,83341.0,83340.0,0.09669487]
[1743325995138,1.01957094,83341.0,83340.0,0.18999487]
[1743325995337,1.0195711,83341.0,83340.0,0.19091487]
[1743325995543,1.0195711,83341.0,83340.0,0.31001877]
[1743325995544,0.64060744,83341.0,83340.0,0.31001877]
[1743325995748,0.69394744,83341.0,83340.0,0.19059487]
[1743325995948,0.6843695,83341.0,83340.0,0.31061877]
[1743325997049,0.56047625,83341.0,83340.0,0.31061877]
[1743325999653,0.50211575,83341.0,83340.0,0.31061877]
[1743326000245,0.14131575,83341.0,83340.0,0.31061877]
[1743326001345,0.14122459,83341.0,83340.0,0.31061877]
[1743326003551,0.14122459,83341.0,83340.0,0.19059487]
[1743326004253,0.15067342,83341.0,83340.0,0.19059487]
[1743326004846,0.16035328,83341.0,83340.0,0.19059487]
[1743326005151,0.16041837,83341.0,83340.0,0.19059487]
[1743326005347,0.19221837,83341.0,83340.0,0.19059487]
[1743326007049,0.22461837,83341.0,83340.0,0.19059487]
[1743326008957,0.22460553,83341.0,83340.0,0.19059487]
[1743326012351,0.33884553,83341.0,83340.0,0.19059487]
[1743326014062,0.32939853,83341.0,83340.0,0.19059487]
[1743326014857,0.32938427,83341.0,83340.0,0.19059487]
[1743326018065,0.33879053,83341.0,83340.0,0.19059487]
[1743326018662,0.33879125,83341.0,83340.0,0.19059487]
[1743326018859,0.33879125,83341.0,83340.0,1.69059487]
[1743326021270,0.32938427,83341.0,83340.0,0.19059487]
[1743326021967,0.31970441,83341.0,83340.0,0.19059487]
[1743326022462,0.31969593,83341.0,83340.0,0.19059487]
[1743326024367,0.3196961,83341.0,83340.0,0.19059487]
[1743326025567,0.3196961,83341.0,83340.0,0.15909487]
[1743326027583,0.2054561,83341.0,83340.0,0.15909487]
[1743326027784,0.3196961,83341.0,83340.0,0.15909487]
[1743326029483,0.2054561,83341.0,83340.0,0.15909487]
[1743326029681,0.3196961,83341.0,83340.0,0.15909487]
[1743326030584,0.37805134,83341.0,83340.0,0.15909487]
[1743326041871,0.26381134,83341.0,83340.0,0.15909487]
[1743326042072,0.37805134,83341.0,83340.0,0.15909487]
[1743326042276,0.37805134,83341.0,83340.0,0.19189487]
[1743326042786,0.26381134,83341.0,83340.0,0.19189487]
[1743326043086,0.37805134,83341.0,83340.0,0.31191877]
[1743326043286,0.37805134,83341.0,83340.0,0.19189487]
[1743326044487,0.37805134,83341.0,83340.0,0.09729487]
[1743326046782,0.37800742,83341.0,83340.0,0.09729487]
[1743326048879,0.37800742,83341.0,83340.0,0.13039487]
[1743326049291,0.37800742,83341.0,83340.0,0.16189487]
[1743326053586,0.37799239,83341.0,83340.0,0.16189487]
[1743326054595,0.37798995,83341.0,83340.0,0.16189487]
[1743326060298,0.37798995,83341.0,83340.0,0.28191877]
[1743326060494,0.37799976,83341.0,83340.0,0.28191877]
[1743326060998,0.37799976,83341.0,83340.0,0.16189487]
[1743326061397,0.3874233,83341.0,83340.0,0.16189487]
[1743326062302,0.38752788,83341.0,83340.0,0.16189487]
[1743326062498,0.39724968,83341.0,83340.0,0.16189487]
[1743326062705,0.57724756,83341.0,83340.0,0.16189487]
[1743326065905,0.39724968,83341.0,83340.0,0.16189487]
[1743326066102,0.38488302,83341.0,83340.0,0.16189487]
[1743326066303,0.39725507,83341.0,83340.0,0.16189487]
[1743326067011,0.39725507,83341.0,83340.0,0.28191877]
[1743326067310,0.28301507,83341.0,83340.0,0.16189487]
[1743326067498,0.39725507,83341.0,83340.0,0.16189487]
[1743326070007,0.39725507,83341.0,83340.0,0.28191877]
[1743326072008,0.39725507,83341.0,83340.0,0.16189487]
[1743326072711,0.57725459,83341.0,83340.0,0.16189487]
[1743326073910,0.57748842,83341.0,83340.0,0.16189487]
[1743326075802,0.57748195,83341.0,83340.0,0.16189487]
[1743326076513,0.39748243,83341.0,83340.0,0.16189487]
[1743326076709,0.39751435,83341.0,83340.0,0.16189487]
[1743326077613,0.37545954,83341.0,83340.0,0.16189487]
[1743326077815,0.39751076,83341.0,83340.0,0.16189487]
[1743326078716,0.39751076,83341.0,83340.0,0.13039487]
[1743326083415,0.38510615,83341.0,83340.0,0.13039487]
[1743326083617,0.39751309,83341.0,83340.0,0.13039487]
[1743326085618,0.39751309,83341.0,83340.0,0.16369487]
[1743326086418,0.39751309,83341.0,83340.0,0.13039487]
[1743326089020,0.39751309,83341.0,83340.0,0.09729487]
[1743326089214,0.39765928,83341.0,83340.0,0.09729487]
[1743326093325,0.39769084,83341.0,83340.0,0.09729487]
[1743326093526,0.39769084,83341.0,83340.0,0.16239487]
[1743326094721,0.39769084,83341.0,83340.0,0.19389487]
[1743326094923,0.28345084,83341.0,83340.0,0.31391877]
[1743326095225,0.09922834,83341.0,83340.0,0.67471877]
[1743326095417,0.09830834,83341.0,83340.0,0.67471877]
[1743326095825,0.07879374,83341.0,83340.0,0.67471877]
[1743326096525,0.19881624,83341.0,83340.0,0.6866605]
[1743326098134,0.19881624,83341.0,83340.0,1.1031605]
[1743326098335,0.42086376,83341.0,83340.0,1.1031605]
[1743326098838,0.40942526,83341.0,83340.0,1.1031605]
[1743326099030,0.41806452,83341.0,83340.0,1.1031605]
[1743326099227,0.41898452,83341.0,83340.0,1.1031605]
[1743326099631,0.38448926,83341.0,83340.0,1.1031605]
[1743326099929,0.38356926,83341.0,83340.0,1.1031605]
[1743326100125,0.38556926,83341.0,83340.0,1.1031605]
[1743326101044,0.38856926,83341.0,83340.0,1.1031605]
[1743326101243,0.50859176,83341.0,83340.0,1.1031605]
[1743326101539,0.52091059,83341.0,83340.0,0.97119487]
[1743326101742,0.53143778,83341.0,83340.0,0.97119487]
[1743326102138,0.59453778,83341.0,83340.0,1.09121877]
[1743326103343,0.59553778,83341.0,83340.0,1.09121877]
[1743326103739,0.5859706,83341.0,83340.0,0.73041877]
[1743326103938,0.58597095,83341.0,83340.0,2.17471877]
[1743326104642,0.58597095,83341.0,83340.0,2.05469487]
[1743326104843,0.58597095,83341.0,83340.0,2.17471877]
[1743326105046,0.57633169,83341.0,83340.0,2.17471877]
[1743326105742,0.57633169,83341.0,83340.0,2.05469487]
[1743326105950,0.57633169,83341.0,83340.0,2.17471877]
[1743326107953,0.57632236,83341.0,83340.0,2.17471877]
[1743326108851,0.57632236,83341.0,83340.0,1.81391877]
[1743326109244,0.57632236,83341.0,83340.0,2.17471877]
[1743326109642,0.57630704,83341.0,83340.0,2.17471877]
[1743326110755,0.57630704,83341.0,83340.0,1.81391877]
[1743326111347,0.57630704,83341.0,83340.0,2.17471877]
[1743326112651,0.57630704,83341.0,83340.0,1.81391877]
[1743326112950,0.57630704,83341.0,83340.0,2.17471877]
[1743326113143,0.57630704,83341.0,83340.0,1.81391877]
[1743326113344,0.57630704,83341.0,83340.0,2.17471877]
[1743326113551,0.57630704,83341.0,83340.0,2.14321877]
[1743326113758,0.57630857,83341.0,83340.0,2.17411877]
[1743326114351,0.51320857,83341.0,83340.0,2.17411877]
[1743326115144,0.38089001,83341.0,83340.0,2.17411877]
[1743326115351,0.37993,83341.0,83340.0,2.17411877]
[1743326115646,0.38085,83341.0,83340.0,2.17411877]
[1743326115950,0.37993,83341.0,83340.0,2.17411877]
[1743326117154,0.4999525,83341.0,83340.0,2.17411877]
[1743326117452,0.38085,83341.0,83340.0,2.17411877]
[1743326117649,0.37993,83341.0,83340.0,2.17411877]
[1743326118447,0.38093,83341.0,83340.0,2.17411877]
[1743326118848,0.38093,83341.0,83340.0,1.81331877]
[1743326119055,0.38093,83341.0,83340.0,2.17411877]
[1743326120447,0.37993,83341.0,83340.0,2.17411877]
[1743326120849,0.37993,83341.0,83340.0,1.81331877]
[1743326121050,0.38085,83341.0,83340.0,2.17411877]
[1743326121359,0.37993,83341.0,83340.0,2.17411877]
[1743326122259,0.37993,83341.0,83340.0,1.81331877]
[1743326122460,0.38093,83341.0,83340.0,2.17411877]
[1743326122760,0.37993,83341.0,83340.0,2.17411877]
[1743326124359,0.39214033,83341.0,83340.0,2.17411877]
[1743326124751,0.39214033,83341.0,83340.0,1.81331877]
[1743326124951,0.39306033,83341.0,83340.0,2.17411877]
[1743326125163,0.39213883,83341.0,83340.0,1.81331877]
[1743326125362,0.39313883,83341.0,83340.0,2.17411877]
[1743326125563,0.39213883,83341.0,83340.0,2.17411877]
[1743326126456,0.45843883,83341.0,83340.0,2.38966636]
[1743326127155,0.45843883,83341.0,83340.0,2.02886636]
[1743326127361,0.57942134,83341.0,83340.0,2.38966636]
[1743326128354,0.57944997,83341.0,83340.0,2.20694246]
[1743326129165,0.57944997,83341.0,83340.0,2.23794246]
[1743326129864,0.57944997,83341.0,83340.0,2.17364246]
[1743326131653,0.57944997,83341.0,83340.0,1.81284246]
[1743326133365,0.72339292,83341.0,83340.0,1.59729487]
[1743326134471,0.72039292,83341.0,83340.0,1.59729487]
[1743326134769,0.72341095,83341.0,83340.0,1.59729487]
[1743326136166,1.08421095,83341.0,83340.0,1.59729487]
[1743326136667,1.08422419,83341.0,83340.0,1.59729487]
[1743326137357,0.72342419,83341.0,83340.0,1.59729487]
[1743326137556,1.12020992,83341.0,83340.0,1.59729487]
[1743326137759,1.12020992,83341.0,83340.0,0.09729487]
[1743326137960,1.12020992,83341.0,83340.0,0.09669487]
[1743326138370,1.12020992,83341.0,83340.0,0.09729487]
[1743326139770,0.75940992,83341.0,83340.0,0.09729487]
[1743326139964,1.12020992,83341.0,83340.0,0.09729487]
[1743326140571,1.12019556,83341.0,83340.0,0.09729487]
[1743326141868,0.94026688,83341.0,83340.0,0.09729487]
[1743326142062,0.57946688,83341.0,83340.0,0.09729487]
[1743326142262,0.97156688,83341.0,83340.0,0.09729487]
[1743326142869,0.60776688,83341.0,83340.0,0.09729487]
[1743326143070,0.97256688,83341.0,83340.0,0.09729487]
[1743326144874,0.61176688,83341.0,83340.0,0.09729487]
[1743326145177,0.97256688,83341.0,83340.0,0.09729487]
[1743326146281,0.61175504,83341.0,83340.0,0.09729487]
[1743326146481,0.97255504,83341.0,83340.0,0.09729487]
[1743326148170,0.97255274,83341.0,83340.0,0.09729487]
[1743326148368,0.61175274,83341.0,83340.0,0.09729487]
[1743326148568,0.97255274,83341.0,83340.0,0.09729487]
[1743326149268,0.61175274,83341.0,83340.0,0.09729487]
[1743326149676,0.97255274,83341.0,83340.0,0.09729487]
[1743326150183,0.97255163,83341.0,83340.0,0.09729487]
[1743326151378,0.61175163,83341.0,83340.0,0.09729487]
[1743326151583,0.97255163,83341.0,83340.0,0.09729487]
[1743326151782,0.61175163,83341.0,83340.0,0.09729487]
[1743326151985,0.59951251,83341.0,83340.0,0.09729487]
[1743326152178,0.61175448,83341.0,83340.0,0.09729487]
[1743326152687,0.97255448,83341.0,83340.0,0.09729487]
[1743326153276,0.61175448,83341.0,83340.0,0.09729487]
[1743326153783,0.97255448,83341.0,83340.0,0.09729487]
[1743326154285,0.97255448,83341.0,83332.0,0.00025998]
[1743326154286,0.120034,83333.0,83332.0,0.00025998]
[1743326154493,0.60835598,83333.0,83332.0,0.00025998]
[1743326154690,0.60835598,83333.0,83332.0,0.00017998]
[1743326155190,0.60835598,83333.0,83332.0,0.00081998]
[1743326155374,0.67095598,83333.0,83332.0,0.00081998]
[1743326156082,0.67099415,83333.0,83332.0,0.00081998]
[1743326156487,0.67599415,83333.0,83332.0,0.00081998]
[1743326156688,0.67599415,83333.0,83332.0,0.00017998]
[1743326157178,0.67399415,83333.0,83332.0,0.00081998]
[1743326157382,0.67599415,83333.0,83332.0,0.00081998]
[1743326158485,0.31519415,83333.0,83332.0,0.00081998]
[1743326158686,0.67599415,83333.0,83332.0,0.00081998]
[1743326160192,0.67599415,83333.0,83332.0,0.00017998]
[1743326160689,0.67599415,83333.0,83332.0,0.00093998]
[1743326161192,0.85437873,83333.0,83332.0,0.00093998]
[1743326161392,0.85437873,83333.0,83332.0,0.00017998]
[1743326161587,0.85329872,83333.0,83332.0,0.00017998]
[1743326163288,0.86293281,83333.0,83332.0,0.00017998]
[1743326165597,0.85329872,83333.0,83332.0,0.00017998]
[1743326165797,0.85329872,83333.0,83332.0,0.03117998]
[1743326166406,0.49249872,83333.0,83332.0,0.03117998]
[1743326166593,0.85441873,83333.0,83332.0,0.03117998]
[1743326169406,0.86940025,83333.0,83332.0,0.03117998]
[1743326169696,0.86940025,83333.0,83332.0,0.00017998]
[1743326169897,0.85441873,83333.0,83332.0,0.00017998]
[1743326171304,0.49361873,83333.0,83332.0,0.00017998]
[1743326171600,0.85441873,83333.0,83332.0,0.00017998]
[1743326172603,0.85442495,83333.0,83332.0,0.00017998]
[1743326173904,0.84211882,83333.0,83332.0,0.00017998]
[1743326174399,0.48131882,83333.0,83332.0,0.00017998]
[1743326174603,0.85442714,83333.0,83332.0,0.00017998]
[1743326174904,0.84211882,83333.0,83332.0,0.00017998]
[1743326175099,0.85442627,83333.0,83332.0,0.00017998]
[1743326176698,0.85442686,83333.0,83332.0,0.00017998]
[1743326177609,0.84211882,83333.0,83332.0,0.00017998]
[1743326177814,0.60431085,83333.0,83332.0,0.00017998]
[1743326178018,0.67182642,83333.0,83332.0,0.00017998]
[1743326178209,0.19682642,83333.0,83332.0,0.00017998]
[1743326178409,0.31102642,83333.0,83332.0,0.00017998]
[1743326179624,0.31093247,83333.0,83332.0,0.09483998]
[1743326180515,0.31093247,83333.0,83332.0,0.09407998]
[1743326180914,0.31093247,83333.0,83332.0,0.09475998]
[1743326182812,0.32591927,83333.0,83332.0,0.09407998]
[1743326183223,0.31093247,83333.0,83332.0,0.09407998]
[1743326183522,0.31093247,83333.0,83332.0,0.09479998]
[1743326183924,0.31093247,83333.0,83332.0,0.09407998]
[1743326184126,0.32591927,83333.0,83332.0,0.09523998]
[1743326184720,0.32591927,83333.0,83332.0,0.09407998]
[1743326184916,0.32591927,83333.0,83332.0,0.09471998]
[1743326185321,0.32592427,83333.0,83332.0,0.09471998]
[1743326185521,0.180061,83330.0,83329.0,0.1200391]
[1743326185720,0.19339007,83330.0,83329.0,0.1200391]
[1743326186213,0.1200412,83328.0,83327.0,0.0600208]
[1743326186412,0.0600226,83326.0,83323.0,0.00056006]
[1743326186618,0.120047,83324.0,83323.0,0.00128006]
[1743326186913,0.24757607,83324.0,83323.0,0.00128006]
[1743326187113,0.24757607,83324.0,83323.0,0.00120006]
[1743326187324,0.3104014,83324.0,83323.0,0.00120006]
[1743326187919,0.3104014,83324.0,83317.0,0.536557]
[1743326187920,0.7190233,83324.0,83301.0,0.08330777]
[1743326188121,0.1200773,83303.0,83302.0,0.03082]
[1743326188325,0.24807169,83303.0,83302.0,0.03146]
[1743326188522,0.24807169,83303.0,83302.0,0.03082]
[1743326188723,0.27827169,83303.0,83302.0,0.03082]
[1743326189126,0.28710654,83303.0,83302.0,0.03082]
[1743326189332,0.29010654,83303.0,83302.0,0.03082]
[1743326189725,0.17566654,83303.0,83302.0,0.03082]
[1743326189920,0.29010654,83303.0,83302.0,0.03082]
[1743326190628,0.29310654,83303.0,83302.0,0.03082]
[1743326191533,0.32640654,83303.0,83302.0,0.03082]
[1743326192534,0.32640654,83303.0,83300.0,0.1]
[1743326192735,0.0600493,83289.0,83284.0,0.0614]
[1743326192925,0.4809032,83285.0,83284.0,0.06212]
[1743326193433,0.50196634,83285.0,83284.0,0.06212]
[1743326193632,0.50060634,83285.0,83284.0,0.0614]
[1743326194224,0.50160634,83285.0,83284.0,0.0614]
[1743326195029,0.51358788,83285.0,83284.0,0.0614]
[1743326195534,0.15278788,83285.0,83284.0,0.0614]
[1743326195735,0.51358788,83285.0,83284.0,0.0614]
[1743326195937,0.51358788,83285.0,83284.0,0.0923]
[1743326196135,0.51358788,83285.0,83283.0,8e-05]
[1743326196136,0.1201047,83284.0,83283.0,8e-05]
[1743326196336,0.16198637,83284.0,83283.0,8e-05]
[1743326196525,0.19278637,83284.0,83283.0,8e-05]
[1743326196724,0.1201147,83277.0,83276.0,0.0955]
[1743326196929,0.12988127,83277.0,83276.0,0.0955]
[1743326197234,0.13980274,83277.0,83276.0,0.0955]
[1743326197423,0.20070274,83277.0,83276.0,0.09558]
[1743326198234,0.19078127,83277.0,83276.0,0.09558]
[1743326198440,0.55290127,83277.0,83276.0,0.09622]
[1743326198634,0.55290127,83277.0,83276.0,0.06384]
[1743326199138,0.56278915,83277.0,83276.0,0.06384]
[1743326200631,0.56267115,83277.0,83276.0,0.06384]
[1743326203440,0.56267115,83277.0,83276.0,0.09634]
[1743326204635,0.65141115,83277.0,83276.0,0.2164562]
[1743326204836,0.53197115,83277.0,83276.0,0.2164562]
[1743326205244,0.52208327,83277.0,83276.0,0.2164562]
[1743326209142,0.5124347,83277.0,83276.0,0.2164562]
[1743326209337,0.52201516,83277.0,83276.0,0.2164562]
[1743326209545,0.53177922,83277.0,83276.0,0.2164562]
[1743326209734,0.52201516,83277.0,83276.0,0.2164562]
[1743326211436,0.53173827,83277.0,83276.0,0.2149562]
[1743326212147,0.1708836,83277.0,83276.0,0.2149562]
[1743326212339,0.16135781,83277.0,83276.0,0.2149562]
[1743326212640,0.17088748,83277.0,83276.0,0.2149562]
[1743326212844,0.16956748,83277.0,83276.0,0.2149562]
[1743326213144,0.17088748,83277.0,83276.0,0.2149562]
[1743326214049,0.17098761,83277.0,83276.0,0.2149562]
[1743326216249,0.1833189,83277.0,83276.0,0.2149562]
[1743326218053,0.18330504,83277.0,83276.0,0.2149562]
[1743326218753,0.02065265,83277.0,83276.0,0.4348562]
[1743326218951,0.13178826,83279.0,83278.0,0.1201133]
[1743326219250,0.14267339,83279.0,83278.0,0.25113214]
[1743326219552,0.14135339,83279.0,83278.0,2.31763214]
[1743326219849,0.13178826,83279.0,83278.0,2.31763214]
[1743326221241,0.13178826,83279.0,83278.0,2.67843214]
[1743326222248,0.13178826,83279.0,83278.0,2.31763214]
[1743326222553,0.13178826,83279.0,83278.0,2.52843214]
[1743326223047,0.13178826,83279.0,83278.0,2.67843214]
[1743326223254,0.0600449,83295.0,83278.0,2.67843214]
[1743326223255,0.0313,83291.0,83290.0,0.120096]
[1743326223452,0.04493448,83291.0,83290.0,0.121456]
[1743326223854,0.01363448,83291.0,83290.0,0.184056]
[1743326224058,0.00132,83291.0,83290.0,0.184056]
[1743326224751,0.00432,83291.0,83290.0,0.184056]
[1743326226649,0.00432,83291.0,83290.0,1.684056]
[1743326226956,0.00018009,83293.0,83292.0,0.1200931]
[1743326227159,0.00018009,83293.0,83292.0,0.1208131]
[1743326227546,0.00018009,83293.0,83292.0,0.1850131]
[1743326227750,0.14390979,83293.0,83292.0,0.1850131]
[1743326229456,0.14590979,83293.0,83292.0,0.1850131]
[1743326229649,0.14890979,83293.0,83292.0,0.3350131]
[1743326230260,0.14890979,83293.0,83292.0,1.8350131]
[1743326231257,0.09890979,83293.0,83292.0,2.0750131]
[1743326231453,0.04890979,83293.0,83292.0,2.0750131]
[1743326232257,0.005,83293.0,83292.0,2.0750131]
[1743326233052,0.005,83293.0,83292.0,2.4915131]
[1743326236263,0.0315,83300.0,83299.0,0.120083]
[1743326236464,0.0315,83300.0,83299.0,0.599523]
[1743326236668,0.0315,83300.0,83299.0,0.749523]
[1743326237163,0.0315,83300.0,83299.0,2.314223]
[1743326237775,0.0355,83300.0,83299.0,2.314223]
[1743326238361,0.0355,83300.0,83299.0,2.164223]
[1743326238868,0.0355,83300.0,83299.0,2.730723]
[1743326239070,0.0395,83300.0,83299.0,2.730723]
[1743326239461,0.008,83300.0,83299.0,2.730723]
[1743326239863,0.004,83300.0,83299.0,2.730723]
[1743326240065,0.006,83300.0,83299.0,2.730723]
[1743326240272,0.004,83300.0,83299.0,2.730723]
[1743326240665,0.0354,83300.0,83299.0,2.730723]
[1743326241567,0.004,83300.0,83299.0,3.000723]
[1743326243575,0.00018009,83301.0,83300.0,0.1200816]
[1743326243874,0.00018009,83301.0,83300.0,0.4639216]
[1743326244177,0.00018009,83301.0,83300.0,0.6139216]
[1743326244568,0.00018009,83301.0,83300.0,2.8355216]
[1743326244764,0.00018009,83301.0,83300.0,3.2520216]
[1743326245166,0.00018009,83301.0,83300.0,3.5220216]
[1743326245571,0.00218009,83301.0,83300.0,3.5220216]
[1743326245776,0.0316,83315.0,83314.0,0.1200614]
[1743326245970,0.0316,83315.0,83314.0,1.0156414]
[1743326246470,0.0316,83315.0,83314.0,2.5156414]
[1743326246675,0.0316,83315.0,83314.0,2.5794414]
[1743326246875,0.0316,83315.0,83314.0,2.2186414]
[1743326247071,0.0316,83315.0,83314.0,2.5794414]
[1743326247565,0.0316,83315.0,83314.0,2.5804414]
[1743326248282,0.0619,83315.0,83314.0,2.5498414]
[1743326249065,0.0919,83315.0,83314.0,2.56177191]
[1743326249267,0.0919,83315.0,83314.0,2.52857191]
[1743326252574,0.0919,83315.0,83314.0,2.41097191]
[1743326252875,0.0919,83315.0,83314.0,2.52833191]
[1743326253767,0.0919,83315.0,83314.0,2.16753191]
[1743326253966,0.0919,83315.0,83314.0,2.52833191]
[1743326254473,0.0919,83315.0,83314.0,2.16753191]
[1743326254774,0.0919,83315.0,83314.0,2.52833191]
[1743326255472,0.0919,83315.0,83314.0,2.16753191]
[1743326255679,0.0919,83315.0,83314.0,2.52833191]
[1743326258783,0.0616,83315.0,83314.0,2.52833191]
[1743326259171,0.0616,83315.0,83314.0,2.59313191]
[1743326259568,0.0616,83315.0,83314.0,2.23233191]
[1743326259772,0.0616,83315.0,83314.0,2.59313191]
[1743326261481,0.0616,83315.0,83314.0,2.52833191]
[1743326261684,0.0616,83315.0,83314.0,2.16753191]
[1743326261981,0.0616,83315.0,83314.0,2.52833191]
[1743326262578,0.0616,83315.0,83314.0,2.16753191]
[1743326262779,0.0616,83315.0,83314.0,2.52833191]
[1743326264169,0.18166,83315.0,83314.0,2.41097191]
[1743326264380,0.0616,83315.0,83314.0,2.52785191]
[1743326265783,0.0616,83315.0,83314.0,2.5159214]
[1743326267586,0.0616,83315.0,83314.0,2.1551214]
[1743326267788,0.0616,83315.0,83314.0,2.5159214]
[1743326269886,0.0616,83315.0,83314.0,2.1551214]
[1743326270089,0.0616,83315.0,83314.0,2.5159214]
[1743326271782,0.0616,83315.0,83314.0,2.1551214]
[1743326271988,0.0616,83315.0,83314.0,2.5159214]
[1743326274281,0.0616,83315.0,83314.0,2.5769214]
[1743326275594,0.0616,83315.0,83314.0,2.4600414]
[1743326275790,0.0616,83315.0,83314.0,2.5769214]
[1743326278793,0.0616,83315.0,83314.0,2.2161214]
[1743326279093,0.0616,83315.0,83314.0,2.5769214]
[1743326279482,0.0616,83315.0,83314.0,2.2971514]
[1743326280291,0.0616,83315.0,83314.0,2.4172128]
[1743326281096,0.0616,83315.0,83314.0,2.46353235]
[1743326281397,0.0616,83315.0,83314.0,2.4172128]
[1743326281597,0.1083647,83316.0,83315.0,0.12006]
[1743326281789,0.1083647,83316.0,83315.0,0.484]
[1743326281992,0.0583647,83316.0,83315.0,0.484]
[1743326282193,0.0083647,83316.0,83315.0,1.984]
[1743326283498,0.0319,83322.0,83321.0,0.1200513]
[1743326283693,0.0634,83322.0,83321.0,0.7514913]
[1743326284098,0.0634,83322.0,83321.0,2.2514913]
[1743326284397,0.0634,83322.0,83321.0,2.3129913]
[1743326284798,0.0644,83322.0,83321.0,2.3129913]
[1743326285692,0.0644,83322.0,83321.0,1.9521913]
[1743326285902,0.0644,83322.0,83321.0,2.5697827]
[1743326286707,0.0654,83322.0,83321.0,2.5697827]
[1743326287702,0.0339,83322.0,83321.0,2.5697827]
[1743326288086,0.0339,83322.0,83321.0,2.2089827]
[1743326288487,0.0339,83322.0,83321.0,2.5697827]
[1743326289291,0.0339,83322.0,83321.0,2.2089827]
[1743326289498,0.0339,83322.0,83321.0,2.5697827]
[1743326289801,0.0645,83322.0,83321.0,2.5697827]
[1743326297310,0.0645,83322.0,83321.0,2.2089827]
[1743326297608,0.0645,83322.0,83321.0,2.5697827]
[1743326299007,0.0645,83322.0,83321.0,2.2089827]
[1743326299505,0.0645,83322.0,83321.0,2.5697827]
[1743326304315,0.0645,83322.0,83321.0,2.2089827]
[1743326304609,0.0645,83322.0,83321.0,2.5697827]
[1743326306213,0.21142842,83335.0,83331.0,0.1200369]
[1743326306415,0.10857065,83335.0,83334.0,0.1200326]
[1743326306721,0.10857065,83335.0,83334.0,0.7614726]
[1743326306722,0.10953066,83335.0,83334.0,0.7614726]
[1743326307018,0.04327755,83340.0,83339.0,0.1200254]
[1743326307218,0.04327755,83340.0,83339.0,0.1206654]
[1743326307708,0.04327755,83340.0,83339.0,1.6206654]
[1743326307910,0.04327755,83340.0,83339.0,1.8011654]
[1743326308324,0.04327755,83340.0,83339.0,2.0411654]
[1743326308511,0.04327755,83340.0,83339.0,2.05298864]
[1743326308708,0.04727755,83340.0,83339.0,2.06214444]
[1743326309409,0.004,83340.0,83339.0,2.06214444]
[1743326310415,0.008,83340.0,83339.0,2.06214444]
[1743326310623,0.008,83340.0,83339.0,2.78374444]
[1743326312120,0.008,83340.0,83339.0,3.04053584]
[1743326313118,0.004,83340.0,83339.0,3.04053584]
[1743326313319,0.006,83340.0,83339.0,3.04053584]
[1743326313618,0.004,83340.0,83339.0,3.04053584]
[1743326316522,0.004,83340.0,83339.0,2.31893584]
[1743326316718,0.004,83340.0,83339.0,3.04053584]
[1743326316908,0.004,83340.0,83339.0,2.31893584]
[1743326317112,0.004,83340.0,83339.0,3.04053584]
[1743326317916,0.004,83340.0,83339.0,2.31893584]
[1743326318118,0.004,83340.0,83339.0,3.04053584]
[1743326321022,0.0634,83346.0,83345.0,0.1200167]
[1743326321219,0.0634,83346.0,83345.0,0.1207367]
[1743326321415,0.0634,83346.0,83345.0,0.4007367]
[1743326321917,0.0634,83346.0,83345.0,1.9007367]
[1743326322419,0.0694,83346.0,83345.0,1.9007367]
[1743326322618,0.00058009,83348.0,83347.0,0.1200139]
[1743326322820,0.00058009,83348.0,83347.0,0.7114539]
[1743326323020,0.0658,83360.0,83359.0,0.1199966]
[1743326323335,0.0658,83360.0,83359.0,2.0968766]
[1743326324623,0.0658,83360.0,83359.0,2.1300766]
[1743326325733,0.0678,83360.0,83359.0,2.1300766]
[1743326325921,0.0678,83360.0,83359.0,2.0968766]
[1743326326529,0.0678,83360.0,83359.0,1.9814366]
[1743326326723,0.0678,83360.0,83359.0,2.0967966]
[1743326327430,0.0678,83360.0,83359.0,2.1299966]
[1743326328326,0.0678,83360.0,83359.0,2.14224234]
[1743326328528,0.0658,83360.0,83359.0,2.14224234]
[1743326328723,0.0698,83360.0,83359.0,2.10904234]
[1743326329119,0.0698,83360.0,83359.0,1.74824234]
[1743326330923,0.0698,83360.0,83359.0,1.63288234]
[1743326342736,0.1897952,83360.0,83359.0,1.63288234]
[1743326343127,0.0698,83360.0,83359.0,1.63288234]
[1743326343529,0.1897952,83360.0,83359.0,1.63288234]
[1743326345538,0.0698,83360.0,83359.0,1.63288234]
[1743326346544,0.1897952,83360.0,83359.0,1.63288234]
[1743326348433,0.1897952,83360.0,83359.0,1.66518234]
[1743326349639,0.0698,83360.0,83359.0,1.66518234]
[1743326350738,0.004,83360.0,83359.0,1.66518234]
[1743326355047,0.004,83360.0,83359.0,2.02598234]
[1743326358739,0.004,83360.0,83359.0,1.66518234]
[1743326359052,0.004,83360.0,83359.0,2.14090234]
[1743326359544,0.004,83360.0,83359.0,1.78010234]
[1743326359750,0.004,83360.0,83359.0,2.14090234]
[1743326360649,0.004,83360.0,83359.0,2.14086234]
[1743326361847,0.004,83360.0,83359.0,2.17106234]
[1743326362048,0.004,83360.0,83359.0,2.20176234]
[1743326364051,0.004,83360.0,83359.0,1.84096234]
[1743326364349,0.004,83360.0,83359.0,2.20176234]
[1743326364651,0.004,83360.0,83359.0,1.84096234]
[1743326364854,0.004,83360.0,83359.0,2.20176234]
[1743326365847,0.004,83360.0,83359.0,1.84096234]
[1743326366047,0.004,83360.0,83359.0,2.20176234]
[1743326370353,0.004,83360.0,83359.0,1.84096234]
[1743326370557,0.004,83360.0,83359.0,2.20176234]
[1743326372257,0.004,83360.0,83359.0,1.84096234]
[1743326372458,0.004,83360.0,83359.0,2.20176234]
[1743326373544,0.004,83360.0,83359.0,1.84096234]
[1743326373744,0.004,83360.0,83359.0,2.20176234]
[1743326383065,0.004,83360.0,83359.0,2.08688234]
[1743326383386,0.004,83360.0,83359.0,2.20144234]
[1743326388666,0.004,83360.0,83359.0,2.48144234]
[1743326388971,0.0004,83364.0,83363.0,0.1199908]
[1743326389173,0.0004,83364.0,83363.0,0.1205908]
[1743326389473,0.0308,83364.0,83363.0,0.1205908]
[1743326389658,0.03176001,83364.0,83363.0,1.6205908]
[1743326389862,0.0308,83364.0,83363.0,1.6837908]
[1743326390069,0.0638,83364.0,83363.0,1.6837908]
[1743326390271,0.0678,83364.0,83363.0,1.6837908]
[1743326390573,0.0698,83364.0,83363.0,1.6837908]